Cogmind - Beta 12 @@@ ROGUE MODE // 2023.05.22 @ 15:39:37 Player: snowphil Result: Destroyed by G-34 Mercenary with Small Laser Performance ------------- Evolutions (0) 0 Regions Visited (1) 200 Robots Destroyed (5) 25 Value Destroyed (124) 124 Prototype IDs (0) 0 Alien Tech Used (0) 0 Bonus (0) 0 TOTAL SCORE: 349 Bonus ------- None Cogmind --------- Core Integrity 0/250 Matter 300/300 Energy 100/100 System Corruption 0% Temperature Cool (6) Movement Walking (120) Location -10/Materials Parts ------- > --- POWER (1) -------- (None) > --- PROPULSION (2) --- Improved Aluminum Leg Improved Aluminum Leg > --- UTILITY (2) ------ Medium Storage Unit > --- WEAPON (2) ------- Medium Laser Medium Laser > --- INVENTORY (10) --- Visual Processing Unit Sensor Array Signal Interpreter Hardened Light Armor Plating Hardened Light Armor Plating Hardened Light Armor Plating Peak State ------------ > --- POWER ------------ Light Ion Engine > --- PROPULSION ------- Improved Aluminum Leg Improved Aluminum Leg > --- UTILITY ---------- Small Storage Unit Hardened Light Armor Plating > --- WEAPON ----------- Medium Laser Medium Laser > --- INVENTORY -------- Light Ion Engine Improved Aluminum Leg Improved Aluminum Leg Visual Processing Unit Sensor Array Hardened Light Armor Plating Hardened Light Armor Plating Hardened Light Armor Plating [Rating: 11] Favorites ----------- Power Light Ion Engine Engine Light Ion Engine Propulsion Aluminum Leg Leg Aluminum Leg Utility Small Storage Unit Device Tractor Beam Storage Small Storage Unit Protection Hardened Light Armor Plating Weapon Medium Laser Energy Gun Medium Laser Build | -11 -10 ------- Run | Jun Mat Slots Evolved . | . . Power . | . . Propulsion . | . . Utility . | . . Weapon . | . . Parts Attached 15 | 7 8 Power 2 | 1 1 Engine 2 | 1 1 Core . | . . Reactor . | . . Propulsion 6 | 2 4 Treads . | . . Leg 6 | 2 4 Wheel . | . . Hover . | . . Flight . | . . Utility 5 | 2 3 Device 2 | 1 1 Storage 2 | 1 1 Processor . | . . Hackware . | . . Protection 1 | . 1 Artifact . | . . Weapon 2 | 2 . Energy Gun 2 | 2 . Energy Cannon . | . . Ballistic Gun . | . . Ballistic Cannon . | . . Launcher . | . . Special Weapon . | . . Impact Weapon . | . . Slashing Weapon . | . . Piercing Weapon . | . . Special Melee Weapon . | . . Unidentified Prototypes . | . . Parts Lost 4 | . 4 Power 1 | . 1 Propulsion 2 | . 2 Utility 1 | . 1 Weapon . | . . Highest Loss Streak 4 | . 4 To Critical Strikes . | . . Average Slot Usage (%) 93 | . 93 Engine 10 | . 10 Leg 27 | . 27 Device 5 | . 5 Storage 14 | . 14 Protection 6 | . 6 Energy Gun 28 | . 28 Naked Turns . | . . Heaviest Build 22 | 13 22 Greatest Support 26 | 20 26 Greatest Overweight (x) 4 | . 4 Average Overweight (x) . | . . Largest Inventory Capacity 10 | 8 10 Average Capacity 8 | 7 8 Most Carried 8 | 4 8 Average Carried 3 | 1 6 Final Capacity 10 | 8 10 Final Carried 6 | 2 6 Class Distribution -------------------- 100% | Mutant Dominant Class ---------------- Mutant | -10/Materials Resources | -11 -10 ----------- Run | Jun Mat Matter Collected 315 | 270 45 Remotely 74 | 74 . Salvage Created 240 | 95 145 Parts 10 | 1 9 Haulers Intercepted . | . . Recyclers Shooed . | . . Parts Field Recycled . | . . Retrieved Matter . | . . Parts Self-Destructed . | . . Prevented . | . . Kills | -11 -10 ------- Run | Jun Mat Combat Hostiles Destroyed 3 | . 3 Guns 3 | . 3 Classes Destroyed 3 | 1 2 Recycler 1 | 1 . Watcher 1 | . 1 Grunt 3 | . 3 Best Kill Streak 2 | 1 2 Combat Bots Only 2 | . 2 Max Kills in Single Turn 1 | 1 1 Gunslinging . | . . Exploded . | . . Melee . | . . Uniques/NPCs Destroyed . | . . Combat | -11 -10 -------- Run | Jun Mat Damage Taken 954 | . 954 Core 256 | . 256 Absorbed by Shields . | . . Core Remaining (%) 100 | 100 . Volleys Fired 14 | 1 13 Largest 2 | 2 2 Hottest 100 | 100 100 Shots Fired 28 | 2 26 Gun 28 | 2 26 Cannon . | . . Launcher . | . . Special . | . . Kinetic . | . . Thermal 28 | 2 26 Explosive . | . . Electromagnetic . | . . Robot Hit Streak 6 | 2 6 Robot Miss Streak 2 | . 2 Penetration Max . | . . Secondary Targets . | . . Shots Hit Robots 17 | 2 15 Core Hits 9 | 2 7 Critical Kills . | . . Critical Parts Destroyed . | . . Critical Strikes 1 | . 1 Burn 1 | . 1 Melee Attacks . | . . Impact . | . . Slashing . | . . Piercing . | . . Sneak Attacks . | . . Combat Hostiles . | . . Follow-up Attacks . | . . Damage Inflicted 219 | 24 195 Guns 210 | 24 186 Cannons . | . . Explosions . | . . Melee . | . . Ramming 9 | . 9 Kinetic . | . . Thermal 210 | 24 186 Explosive . | . . Electromagnetic . | . . Impact . | . . Slashing . | . . Piercing . | . . Highest Corruption . | . . Average Corruption . | . . Corruption Purged . | . . Corruption Blocked . | . . Overload Shots . | . . Overflow Damage . | . . Projectiles . | . . Explosions . | . . Melee . | . . Knockbacks . | . . Impact . | . . Kinetic . | . . Secondary . | . . Self-Inflicted Damage . | . . Shots . | . . Rammed . | . . Targets Rammed 8 | . 8 Kicked 8 | . 8 Crushed . | . . Highest Temperature 288 | 39 288 Average Temperature 106 | 20 111 Received Heat Transfer 543 | . 543 Effects 3 | . 3 Interference 3 | . 3 Siege Activations . | . . Robots Corrupted . | . . Combat Hostiles . | . . Parts Fried . | . . Impact Corruptions . | . . Robots Melted . | . . Combat Hostiles . | . . Parts Melted . | . . Heat Transferred 703 | 74 629 Parts Sabotaged . | . . Parts Stolen . | . . Parts Stripped . | . . Power Chain Reactions . | . . Missiles Intercepted . | . . Alert | -11 -10 ------- Run | Jun Mat Peak Influence 150 | 5 150 Initial . | . . Average 16 | 1 45 Maximum Alert Level . | . . Low Security (%) 100 | 100 100 Level 1 . | . . Level 2 . | . . Level 3 . | . . Level 4 . | . . Level 5 . | . . High Security . | . . Max Security . | . . Squads Dispatched 5 | . 5 Investigation 3 | . 3 Extermination . | . . Reinforcement 2 | . 2 Assault . | . . Garrison . | . . Intercept . | . . Searches Triggered . | . . Construction Impeded . | . . Haulers Reinforced . | . . Active Scanning Responses . | . . Cargo Convoy Interrupts . | . . Stealth | -11 -10 --------- Run | Jun Mat Distress Signals 1 | . 1 Communications Jammed . | . . Distress Signals . | . . Times Spotted 24 | . 24 Peak Tracking Total 10 | . 10 Tactical Retreats 3 | . 3 Traps | -11 -10 ------- Run | Jun Mat Traps Triggered 3 | . 3 Indirectly . | . . Trap Hack Attempts . | . . Triggered . | . . Disarmed . | . . Reprogrammed . | . . Reused . | . . Traps Extracted . | . . Installed . | . . Triggered . | . . Machines | -11 -10 ---------- Run | Jun Mat Machines Disabled . | . . Max in Single Turn . | . . Machines Repaired . | . . Machines Sabotaged . | . . Overloaded Fab Kills . | . . Hacking | -11 -10 --------- Run | Jun Mat Machines Accessed 3 | . 3 Terminals 2 | . 2 Fabricators . | . . Repair Stations . | . . Recycling Units 1 | . 1 Scanalyzers . | . . Garrison Access . | . . Total Hacks 8 | . 8 Successful 4 | . 4 Failed 4 | . 4 Catastrophic 1 | . 1 Database Lockouts . | . . Manual 3 | . 3 Terminals 5 | . 5 Fabricators . | . . Repair Stations . | . . Recycling Units 3 | . 3 Scanalyzers . | . . Garrison Access . | . . Terminal Hacks 2 | . 2 Branch Access Points 1 | . 1 Alert Level 1 | . 1 Fabricator Hacks . | . . Repair Station Hacks . | . . Recycling Unit Hacks 1 | . 1 Retrieve Components 1 | . 1 Scanalyzer . | . . Garrison Access Hacks . | . . Unauthorized Hacks 1 | . 1 Terminals . | . . Fabricators . | . . Repair Stations . | . . Recycling Units 1 | . 1 Reject 1 | . 1 Scanalyzers . | . . Garrison Access . | . . Data Cores Recovered . | . . Used . | . . Hacking Detections 2 | . 2 Full Trace Events 1 | . 1 Feedback Events . | . . Feedback Blocked . | . . Robot Schematics Acquired . | . . Robots Built . | . . Authchips . | . . Time . | . . Total Robot Build Rating . | . . Part Schematics Acquired . | . . Parts Built . | . . Authchips . | . . Time . | . . Total Part Build Rating . | . . Parts Repaired . | . . Time . | . . Parts Recycled . | . . Recycled Matter . | . . Retrieved Matter . | . . Retrieved Components 5 | . 5 Parts Scanalyzed . | . . Part Schematics Acquired . | . . Parts Damaged . | . . Bothacking | -11 -10 ------------ Run | Jun Mat Used RIF Installer . | . . Robots Hacked . | . . Non-combat . | . . Combat . | . . Robot Hacks Applied . | . . Relay Couplers Released . | . . Fabnet Peak Effective % . | . . Robots Rewired . | . . Allies Hacked . | . . Hacks Repelled . | . . Allies | -11 -10 -------- Run | Jun Mat Total Allies . | . . Largest Group . | . . Highest-Rated Group . | . . Highest-Rated Ally . | . . Total Orders . | . . Ally Attacks . | . . Total Damage . | . . Kills . | . . Allies Corrupted . | . . Allies Melted . | . . Intel | -11 -10 ------- Run | Jun Mat Robot Analysis Total . | . . Derelict Logs Recovered . | . . Drone Launches . | . . Drone Recoveries . | . . Exploration | -11 -10 ------------- Run | Jun Mat Turns Passed 2143 | 1399 744 Spaces Moved 768 | 355 413 Core 11 | 9 2 Treads . | . . Legs 757 | 346 411 Wheels . | . . Hover . | . . Flight . | . . Fastest Speed 50 | 50 120 Average Speed 119 | 118 121 Slowest Speed 250 | 120 250 Overloaded Moves . | . . Propulsion Burnouts . | . . Robots Hopped . | . . Cave-ins Triggered . | . . Exploration Rate (%) 58 | 47 69 Regions Visited 1 Branch Regions . Pre-discovered Areas . | . . Known Exits Taken . | . . Unknown Exits Taken 1 | 1 . Scrap Searched . | . . Spaces Dug . | . . Terrain Destroyed . | . . Melee . | . . Projectile . | . . AOE . | . . Terrain Rammed . | . . Walls Destroyed . | . . Machines Disabled . | . . Actions | -11 -10 --------- Run | Jun Mat Total 1962 | 1332 630 Wait 1132 | 961 171 Move 767 | 354 413 Hop . | . . Pick Up 20 | 9 11 Fast Attach . | . . Attach 10 | 7 3 Detach . | . . Swap 5 | . 5 Drop 6 | . 6 Fire 14 | 1 13 Melee . | . . Ram . | . . Kick 8 | . 8 Crush . | . . Escape Stasis . | . . Rewire . | . . Trap . | . . Miscellaneous . | . . Route ------- -11/Junkyard -10/Materials (discovered 3 exits: [*Mat x2] / Min) History --------- Turn | Location | Event 10 | -11/Junkyard | Discovered new exit (range 15) 1400 | -11/Junkyard | Entered Materials 1401 | -10/Materials | Build established: Mutant 1832 | -10/Materials | Discovered new exit (range 16) 1914 | -10/Materials | Identified exit to Mines 1971 | -10/Materials | Discovered new exit (range 16) 2048 | -10/Materials | Core integrity fell below 50% 2068 | -10/Materials | Lost 4 parts (1p2n1u) 2135 | -10/Materials | Core integrity fell below 20% 2144 | -10/Materials | Destroyed by G-34 Mercenary with Small Laser Last Messages --------------- 02031_ Med. Laser temporarily disabled. 02033_ Acquired 5 matter. 02036_ Overheating: System interference. 02036_ Med. Laser temporarily disabled. 02037_ Imp. Aluminum Leg destroyed. 02044_ Kicked G-47 Trooper. 02046_ Kicked G-47 Trooper out of the way. 02055_ G-34 Mercenary destroyed. 02081_ Kicked T-07 Excavator out of the way. 02112_ Triggered Alarm Trap. 02112_ An alarm sounds. 02112_ ALERT: Alarm triggered, dispatching investigation squad. 02118_ Kicked K-01 Serf. 02138_ Kicked G-34 Mercenary. 02140_ Kicked G-34 Mercenary out of the way. 02141_ Kicked G-34 Mercenary. 02143_ Triggered Alarm Trap. 02143_ An alarm sounds. 02143_ ALERT: Alarm triggered, dispatching investigation squad. [Achievement: First Step to Greatness] Map ----- +----------------------------------------------------+ | + !?????????????????# # # ##???????? | | #???????????????????# # # T#???????? | | #####???????????????# ######## ##???????? | | """ ????????????????# #???? # #????????? | | """ #?????????????????# # """ # #????????? | | """ #?????????????????# + """ # #????????? | | #?????????????????# # """ # #????????? | | #?????????????????#% # # #????????? | | """ #?????????????????## ##?###### #????????? | | ^""" #??????????????????# ######### #????????? | | """ #????????>??????????# ## """ # #????????? | | #???????????????????# ## "Y" # #????????? | | #???????????????????# ## # ########## | | #??????? ??????????# ## % # | | ##### #??????# ???????###/## # | | #???# #??????? ##?????# # """ / """ ! | | #???# #???????? a ?????# #! """ # """"" ! | | ????# #????????? ??# # """ ## """"" | | ????# #?????????? ??# [#| ## """"" | | ????# #??????????# ## # """ ## """ | | ????# #??????????# ## # """ ## | | ????# #??????????# r ## # """ ## | | ????# #??????????# ## # + "" | | ????# #???######## ##% ######### T | | ????# #???# # ##/##### # "" | | ????# #???# /! # @%g #?# # | | ????# #???# /! # #?# / | | ##### #???# # #?# ########### | | == # #???#= # """""g #?# #?????????? | | == # #???# #! """"" g#?# #?????????? | | === # #######+#### """"" ######+########????? | | # %% w #?? | | [ + < #?? | | """ # * % #?? | | """ ## ###+#############+###########+######?? | | """ ## #! ????????# ! [#???????????????? | | ## !! # #??????# #???????????????? | | ###### ! #" """ #??????# """ #???????????????? | | ?????########T """ #??????# """ #???????????????? | | ????????????#" """ #??????# """ #???????????????? | | ????????????# #??????# #???????????????? | | ????????????########??????########???????????????? | | ?????????????????????????????????????????????????? | | ?????????????????????????????????????????????????? | | ?????????????????????????????????????????????????? | | ?????????????????????????????????????????????????? | | ?????????????????????????????????????????????????? | | ?????????????????????????????????????????????????? | | | | | +----------------------------------------------------+ Best States ------------- Heat Dissipation 25 Energy Generation 10 Energy Capacity 125 Matter Stores 300 Matter Capacity 300 Sight Range 16 Robot Scan Range 14 Terrain Scan Density 10 Armor Coverage 150 Evasion (%) 55 Item Schematics ----------------- None Robot Schematics ------------------ None Fabricated ------------ Nothing Alien Tech Used ----------------- None Achievements -------------- First Step to Greatness Challenges ------------ None Game ------ Seed AlphaDynamicReconstructor Manual? 0 Play Time 00:22:19 Cumulative 97.4 hours Start 2023.05.22 @ 15:20:53 End 2023.05.22 @ 15:39:37 Sessions 1 Manual Loads 0 Difficulty Rogue Special Mode None Game No. 5 Rogue 3 Adventurer 0 Explorer 2 Win Type - Total 3 Types 0/0/0/3/0/0/0/0/0 Lore% 25 Gallery% 23 Achievement% 39 Wizard Run 0 Options --------- ASCII 0 Keyboard 0 Movement Mouse Keybinds 0 Fullscreen 1 Font 18/SmallcapsGlow Map View 70x50 Tactical HUD 1 Map Filters NONE Filters NONE Steam 1 RUN: 6c38457a-a584-42fc-8fc6-8a8f81388632